[Event "Portuguese Associations Cup 2019"]
[Site "Almada"]
[Date "2019.09.29"]
[Round "3.2"]
[White "Novais, Carlos Joao Fernande"]
[Black "Carvalho, Emanuel Jose"]
[Result "1/2-1/2"]
[ECO "A45"]
[WhiteElo "2051"]
[BlackElo "2025"]
[Annotator "NA"]
[PlyCount "100"]
[EventDate "2019.09.28"]
[EventType "swiss"]
[EventCountry "POR"]
[SourceTitle "playchess.com"]
[Source "ChessBase"]
[SourceQuality "1"]
[TimeControl "5400+30"]

1. d4 {[%emt 0:14:30]} Nf6 {[%emt 0:14:48]} 2. Bg5 Ne4 {[%emt 0:04:04]} 3. Bf4 {[%emt 0:00:44]} g6 {[%emt 0:00:36]} 4. f3 {[%emt 0:00:49]} Nf6 {[%emt 0:00:03]} 5. e4 {[%emt 0:00:17]} d6 {[%emt 0:00:00]} 6. c4 {[%emt 0:02:26]} Bg7 {[%emt 0:00:16]} 7. Nc3 {[%emt 0:00:08]} O-O {[%emt 0:16:50]} 8. Qd2 {[%emt 0:03:08]} c6 {[%emt 0:05:01]} 9. O-O-O {[%emt 0:05:29]} Qa5 {[%emt 0:02:31]} 10. Nge2 {[%emt 0:05:27]} b5 {[%emt 0:01:33]} 11. Ng3 {[%emt 0:01:22]} b4 {[%emt 0:00:45]} 12. Nb1 {[%emt 0:01:23]} Qxa2 13. Qxb4 {[%emt 0:01:57]} c5 {[%emt 0:08:59]} 14. dxc5 Nc6 {[%emt 0:02:48]} 15. Qa3 {[%emt 0:01:48]} Qxa3 {[%emt 0:00:21]} 16. Nxa3 {[%emt 0:01:42]} dxc5 {[%emt 0:03:02]} 17. Be3 Rb8 {[%emt 0:00:19]} 18. Nb5 {[%emt 0:04:21]} Nd7 19. Ne2 {[%emt 0:02:22]} a6 {[%emt 0:02:21]} 20. Nbc3 Nb6 21. Nf4 {[%emt 0:06:35]} Nd4 {[%emt 0:04:53]} 22. Nfd5 {[%emt 0:03:53]} Nxd5 {[%emt 0:08:52]} 23. cxd5 {[%emt 0:01:48]} Rb4 {[%emt 0:02:34]} 24. Na2 {[%emt 0:04:22]} Rb6 25. Bc4 Bd7 {[%emt 0:00:52]} 26. Bd2 {[%emt 0:03:32]} Bb5 {[%emt 0:03:48]} 27. Bxb5 {[%emt 0:01:27]} axb5 {[%emt 0:02:24]} 28. Bc3 {[%emt 0:04:10]} b4 {[%emt 0:02:53]} 29. Bxd4 {[%emt 0:02:21]} Bxd4 {[%emt 0:00:38]} 30. Kb1 {[%emt 0:00:16]} Ra8 {[%emt 0:01:30]} 31. Nc1 {[%emt 0:02:26]} Bf6 32. f4 c4 {[%emt 0:04:55]} 33. e5 {[%emt 0:00:38]} Bg7 {[%emt 0:00:15]} 34. Rd4 Rc8 35. Ne2 {[%emt 0:01:57]} f6 {[%emt 0:00:26]} 36. Rc1 {[%emt 0:04:03]} c3 37. Re4 {[%emt 0:00:05]} fxe5 {[%emt 0:01:24]} 38. fxe5 Bh6 {[%emt 0:01:28]} 39. Rc2 {[%emt 0:01:13]} Ra8 {[%emt 0:00:10]} 40. Nc1 Bxc1 {[%emt 0:08:02]} 41. Rxc1 {[%emt 0:00:45]} cxb2 {[%emt 0:00:38]} 42. Rcc4 {[%emt 0:03:53]} b3 43. Rb4 Ra1+ {[%emt 0:00:51]} 44. Kxb2 {[%emt 0:00:36]} Rxb4 {[%emt 0:00:37]} 45. Rxb4 Ra2+ {[%emt 0:00:06]} 46. Kxb3 {[%emt 0:00:07]} Rxg2 {[%emt 0:00:14]} 47. Rb7 {[%emt 0:00:23]} Kf8 {[%emt 0:00:27]} 48. d6 {[%emt 0:00:06]} exd6 {[%emt 0:01:06]} 49. exd6 {[%emt 0:00:47]} Rd2 50. Rb6 Ke8 {[%emt 0:00:59]} 1/2-1/2

[Event "Portuguese Associations Cup 2019"]
[Site "Almada"]
[Date "2019.09.29"]
[Round "3.3"]
[White "Reis, Luis Simoes"]
[Black "Silva, Mariana Sofia T."]
[Result "1/2-1/2"]
[ECO "A48"]
[WhiteElo "1867"]
[BlackElo "1882"]
[Annotator "NA"]
[PlyCount "75"]
[EventDate "2019.09.28"]
[EventType "swiss"]
[EventCountry "POR"]
[SourceTitle "playchess.com"]
[Source "ChessBase"]
[SourceQuality "1"]
[TimeControl "5400+30"]

1. d4 {[%emt 0:00:00]} Nf6 {[%emt 0:14:31]} 2. Nf3 {[%emt 0:00:00]} g6 {[%emt 0:01:41]} 3. Bg5 {[%emt 0:00:16]} Bg7 {[%emt 0:00:21]} 4. Nbd2 {[%emt 0:00:35]} d5 {[%emt 0:01:00]} 5. e3 {[%emt 0:00:13]} O-O {[%emt 0:01:04]} 6. Be2 {[%emt 0:00:15]} h6 {[%emt 0:09:45]} 7. Bh4 {[%emt 0:01:52]} b6 {[%emt 0:00:34]} 8. O-O {[%emt 0:00:18]} Bb7 {[%emt 0:00:10]} 9. b4 {[%emt 0:01:39]} Nbd7 {[%emt 0:07:33]} 10. c3 {[%emt 0:02:31]} Ne8 {[%emt 0:10:53]} 11. Rb1 {[%emt 0:07:00]} Nd6 {[%emt 0:01:41]} 12. a4 {[%emt 0:02:37]} Nf6 {[%emt 0:05:19]} 13. Qc2 {[%emt 0:09:51]} Bc8 {[%emt 0:06:25]} 14. Ne5 c5 {[%emt 0:07:24]} 15. bxc5 {[%emt 0:17:43]} bxc5 16. dxc5 {[%emt 0:05:05]} Nf5 {[%emt 0:03:42]} 17. Bxf6 {[%emt 0:04:56]} Bxf6 {[%emt 0:00:07]} 18. Ndf3 {[%emt 0:00:34]} Qc7 {[%emt 0:01:12]} 19. Nd3 {[%emt 0:05:24]} e5 20. Nd2 {[%emt 0:03:15]} e4 {[%emt 0:02:44]} 21. Nf4 Qxc5 {[%emt 0:01:01]} 22. Rb5 {[%emt 0:05:41]} Qxc3 {[%emt 0:03:42]} 23. Qxc3 {[%emt 0:00:11]} Bxc3 {[%emt 0:00:06]} 24. Nb1 {[%emt 0:00:20]} d4 {[%emt 0:04:06]} 25. Nxc3 {[%emt 0:02:04]} dxc3 {[%emt 0:00:06]} 26. Rc5 {[%emt 0:00:25]} Bd7 {[%emt 0:00:57]} 27. Rxc3 {[%emt 0:00:43]} Bxa4 {[%emt 0:03:23]} 28. Ra1 {[%emt 0:01:13]} Bd7 {[%emt 0:01:40]} 29. Rc7 {[%emt 0:00:24]} Rfd8 {[%emt 0:03:04]} 30. Raxa7 {[%emt 0:02:10]} Rxa7 31. Rxa7 {[%emt 0:00:09]} Ng7 {[%emt 0:04:10]} 32. h3 {[%emt 0:02:58]} Ne6 {[%emt 0:02:38]} 33. Nd5 {[%emt 0:03:21]} Kg7 {[%emt 0:00:21]} 34. Bc4 {[%emt 0:02:47]} Nc5 {[%emt 0:01:56]} 35. Nf4 {[%emt 0:08:48]} Re8 {[%emt 0:02:27]} 36. Bd5 {[%emt 0:03:51]} Kf6 {[%emt 0:01:36]} 37. Ba2 {[%emt 0:02:59]} Kg7 {[%emt 0:00:17]} 38. Bd5 {[%emt 0:00:57]} 1/2-1/2

[Event "Portuguese Associations Cup 2019"]
[Site "Almada"]
[Date "2019.09.29"]
[Round "3.4"]
[White "Silva, Ana Ines Teixeira Da"]
[Black "Mira, Vitor"]
[Result "1-0"]
[ECO "C44"]
[WhiteElo "1738"]
[BlackElo "1588"]
[Annotator "NA"]
[PlyCount "71"]
[EventDate "2019.09.28"]
[EventType "swiss"]
[EventCountry "POR"]
[SourceTitle "playchess.com"]
[Source "ChessBase"]
[SourceQuality "1"]
[TimeControl "5400+30"]

1. e4 {[%emt 0:14:57]} e5 {[%emt 0:00:00]} 2. Nf3 {[%emt 0:00:08]} Nc6 {[%emt 0:00:00]} 3. d4 {[%emt 0:00:18]} exd4 {[%emt 0:00:31]} 4. Nxd4 {[%emt 0:00:16]} Nxd4 {[%emt 0:00:49]} 5. Qxd4 {[%emt 0:00:08]} c5 {[%emt 0:00:54]} 6. Qe3 {[%emt 0:01:43]} Nf6 {[%emt 0:01:08]} 7. Nc3 d6 8. Bc4 {[%emt 0:09:02]} Ng4 {[%emt 0:06:08]} 9. Qe2 {[%emt 0:03:05]} Ne5 {[%emt 0:00:45]} 10. Bb5+ {[%emt 0:04:39]} Bd7 {[%emt 0:00:45]} 11. Bxd7+ {[%emt 0:04:25]} Qxd7 {[%emt 0:01:53]} 12. O-O {[%emt 0:00:56]} Be7 13. Bf4 {[%emt 0:06:14]} O-O {[%emt 0:03:36]} 14. Rad1 Qc6 15. Nd5 {[%emt 0:06:56]} Rfe8 {[%emt 0:05:03]} 16. Rd2 {[%emt 0:02:36]} b5 {[%emt 0:02:07]} 17. b3 {[%emt 0:08:26]} c4 {[%emt 0:04:20]} 18. Rfd1 {[%emt 0:02:30]} Bf8 19. Rd4 {[%emt 0:09:30]} Rac8 {[%emt 0:02:29]} 20. f3 {[%emt 0:02:06]} cxb3 {[%emt 0:04:56]} 21. cxb3 a5 {[%emt 0:02:48]} 22. Ne3 {[%emt 0:01:24]} g6 {[%emt 0:01:03]} 23. Rd5 {[%emt 0:01:00]} Rb8 {[%emt 0:02:02]} 24. Nc2 Rec8 {[%emt 0:00:31]} 25. Nd4 {[%emt 0:02:33]} Qd7 {[%emt 0:07:54]} 26. Bxe5 Rc5 {[%emt 0:02:15]} 27. Rxc5 {[%emt 0:01:52]} dxe5 28. Rxe5 {[%emt 0:03:13]} Bg7 {[%emt 0:02:23]} 29. Rd5 {[%emt 0:00:15]} Qa7 {[%emt 0:01:28]} 30. Kh1 {[%emt 0:04:40]} Bxd4 {[%emt 0:06:14]} 31. R5xd4 {[%emt 0:00:30]} b4 {[%emt 0:01:53]} 32. Rd8+ {[%emt 0:00:43]} Rxd8 {[%emt 0:00:48]} 33. Rxd8+ {[%emt 0:00:03]} Kg7 {[%emt 0:00:23]} 34. Qb2+ {[%emt 0:00:26]} Kh6 {[%emt 0:00:33]} 35. Qd2+ Kg7 {[%emt 0:00:48]} 36. Qd4+ {[%emt 0:00:13] Kf8} 1-0